fUSD/lending_fUSD_20260413
["ID","MTS","AMOUNT","RATE_DAILY","PERIOD"]
[420403332,1776081145936,-3243.65121925,0.000425,30]
[420403333,1776081145948,-2379.05982441,0.000425,60]
[420403334,1776081145958,-1000.0,0.000425,120]
[420403335,1776081145972,-1000.0,0.000425,120]
[420403336,1776081145983,-155.0,0.000425,120]
[420403337,1776081145997,-272.1091705,0.000425,120]
[420403338,1776081146011,-2546.0,0.000425,120]
[420403339,1776081146021,-500.0,0.000425,120]
[420403340,1776081146040,-1164.41,0.0004251,120]
[420403341,1776081146056,-168.06795822,0.00042522,120]
[420403342,1776081146066,-202.87316954,0.00042524,120]
[420403343,1776081146078,-500.0,0.00042537,120]
[420403344,1776081146097,-1558.21,0.00042546,120]
[420403345,1776081146107,-2098.79,0.00042546,120]
[420403346,1776081146119,-157.09749239,0.00042561,2]
[420403347,1776081146136,-4145.77853938,0.00042563,120]
[420403348,1776081146150,-500.0,0.00042575,120]
[420403349,1776081146166,-204.42,0.00042575,120]
[420403350,1776081146180,-1100.0,0.00042593,30]
[420403351,1776081146218,-14668.89386304,0.000426,120]
[420403352,1776081146247,-4633.98358259,0.00042623,75]
[420403353,1776081146270,-300.20872806,0.00042631,120]
[420403354,1776081146302,-1023.18498992,0.00042637,120]
[420403355,1776081146336,-6964967.6678643,0.00042641,120]
[420403356,1776081146374,-373480.65775702,0.00042672,120]
[420403357,1776081146404,-1000.0,0.00042684,120]
[420403358,1776081146428,-239.69353635,0.00042687,120]
[420403359,1776081146463,-500.0,0.000427,120]
[420403360,1776081146520,-307492.50230622,0.00042709,120]
[420403361,1776081146551,-50000.0,0.00042739,120]
[420403362,1776081146575,-4000.0,0.0004274,14]
[420403363,1776081146598,-214.08,0.00042767,120]
[420403364,1776081146618,-11402.07861785,0.00042784,120]
[420403365,1776081146653,-1000.0,0.000428,120]
[420403366,1776081146691,-145738.4028388,0.000428,30]
[420403367,1776081146719,-100000.00000001,0.000428,45]
[420403368,1776081146759,-100000.00000001,0.000428,60]
[420403369,1776081146787,-100000.00000001,0.000428,75]
[420403370,1776081146823,-100000.00000001,0.000428,90]
[420403371,1776081146846,-100000.00000001,0.000428,105]
[420403372,1776081146881,-99999.99999996,0.000428,120]
[420403373,1776081146903,-5899.68,0.000428,90]
[420403374,1776081146926,-1362.894,0.000428,120]
[420403375,1776081146946,-1857.793,0.000428,90]
[420403376,1776081146968,-1857.793,0.000428,120]
[420403377,1776081146991,-1857.79,0.000428,120]
[420403378,1776081147014,-374.8428,0.000428,120]
[420403379,1776081147033,-696.2549,0.000428,120]
[420403380,1776081147050,-3992.0,0.000428,120]
[420403381,1776081147075,-10000.0,0.000428,30]
[420403382,1776081147092,-196.06,0.000428,120]
[420403383,1776081147115,-1000.0,0.00042823,120]
[420403384,1776081147137,-1000.0,0.00042823,120]
[420403385,1776081147161,-1000.0,0.00042823,120]
[420403386,1776081147187,-540.68,0.0004283,96]
[420403387,1776081147218,-1000.0,0.00042831,120]
[420403388,1776081147261,-500.0,0.00042831,120]
[420403389,1776081147308,-157.09749239,0.00042835,2]
[420403390,1776081147331,-150.0,0.00042853,120]
[420403391,1776081147376,-2246.40525639,0.0004287,5]
[420403392,1776081147405,-1000.0,0.000429,120]
[420403393,1776081147426,-154.0,0.000429,120]
[420403394,1776081147450,-50000.0,0.00042904,60]
[420403395,1776081147469,-11865.01,0.00042904,60]
[420403396,1776081147497,-50000.0,0.00042904,60]
[420403397,1776081147515,-19763.6,0.00042904,60]
[420403398,1776081147542,-180.48,0.00042921,120]
[420403399,1776081147560,-210.0,0.0004295,30]
[420403400,1776081147590,-152.0,0.00042963,8]
[420403401,1776081147615,-266.61534653,0.00042963,5]
[420403402,1776081147633,-152.0,0.00042963,5]
[420403403,1776081147655,-150.0,0.00042971,120]
[420403404,1776081147678,-1000.0,0.00042979,120]
[420403405,1776081147703,-25260.02,0.00042987,11]
[420403406,1776081147735,-2925.61429901,0.0004299,60]
[420403407,1776081147755,-50000.0,0.00043,50]
[420403408,1776081147787,-2676.35995636,0.00043,120]
[420403409,1776081147806,-4632.78898252,0.00043,30]
[420403410,1776081147841,-22000.0,0.00043,120]
[420403411,1776081147887,-22000.0,0.00043,120]
[420403412,1776081147924,-1781.0,0.00043,120]
[420403413,1776081147949,-203.2491442,0.00043,30]
[420403414,1776081147988,-106307.02780865,0.00043,30]
[420403415,1776081148036,-162.57949002,0.00043,14]
[420403416,1776081148059,-908.77,0.00043,120]
[420403417,1776081148091,-10000.0,0.00043,14]
[420403418,1776081148115,-50000.0,0.00043,30]
[420403419,1776081148139,-3245.0,0.00043,120]
[420403420,1776081148165,-3033.17,0.00043,90]
[420403421,1776081148186,-2000.0,0.00043,120]
[420403422,1776081148209,-758.932137,0.00043,120]
[420403423,1776081148238,-529.3479371,0.00043,120]
[420403424,1776081148259,-1153.15520864,0.00043,2]
[420403425,1776081148278,-15866.0,0.00043,120]
[420403426,1776081148298,-3270.0,0.00043,120]
[420403427,1776081148316,-2502.3764168,0.00043,30]
[420403428,1776081148337,-4800.0,0.00043,47]
[420403429,1776081148356,-2373.04500963,0.00043,120]
[420403430,1776081148377,-1053.78,0.00043,120]
[420403431,1776081148399,-12240.80251295,0.00043,14]
[420403432,1776081148431,-36031.51573181,0.00043,120]
[420403433,1776081148450,-2439.17105514,0.00043,30]
[420403434,1776081148474,-174.51327244,0.00043,2]
[420403435,1776081148513,-73215.01681438,0.00043,60]
[420403436,1776081148561,-179.382187,0.00043,120]
[420403437,1776081148631,-1250.0,0.00043,120]
[420403438,1776081148655,-163.72094838,0.00043,120]
[420403439,1776081148681,-395.0,0.00043,120]
[420403440,1776081148709,-826.8843929,0.00043,120]
[420403441,1776081148728,-313.0,0.00043,120]
[420403442,1776081148766,-2426.182662,0.00043,120]
[420403443,1776081148783,-1721.14707139,0.00043,120]
[420403444,1776081148820,-500.0,0.00043,120]
[420403445,1776081148839,-50000.0,0.00043013,120]
[420403446,1776081148858,-180.49080828,0.00043021,120]
[420403447,1776081148874,-1100.0,0.00043046,30]
[420403448,1776081148891,-1000.0,0.000431,120]
[420403449,1776081148907,-157.09749239,0.00043109,2]
[420403450,1776081148926,-500.0,0.00043118,120]
[420403451,1776081148946,-500.0,0.00043126,120]
[420403452,1776081148970,-3286.71536891,0.00043135,30]
[420403453,1776081148986,-500.0,0.00043192,120]
[420403454,1776081149003,-1739.90075234,0.0004325,120]
[420403455,1776081149025,-150.0,0.00043267,120]
[420403456,1776081149041,-1000.0,0.00043273,120]
[420403457,1776081149058,-300.0,0.00043281,2]
[420403458,1776081149078,-300.0,0.00043281,2]
[420403459,1776081149102,-300.0,0.00043281,2]
[420403460,1776081149117,-300.0,0.00043281,2]
[420403461,1776081149135,-300.0,0.00043281,2]
[420403462,1776081149155,-300.07,0.00043281,2]
[420403463,1776081149169,-300.12,0.00043281,2]
[420403464,1776081149189,-500.0,0.00043287,120]
[420403465,1776081149204,-50000.0,0.00043287,120]
[420403466,1776081149224,-424.7906345,0.000433,120]
[420403467,1776081149244,-2553.0,0.0004333,90]
[420403468,1776081149262,-2727.0,0.0004333,90]
[420403469,1776081149285,-500.0,0.00043342,120]
[420403470,1776081149310,-204.42,0.00043342,120]
[420403471,1776081149331,-10000.0,0.0004337,4]
[420403472,1776081149354,-157.09749239,0.00043383,2]
[420403473,1776081149369,-210.34269476,0.00043384,30]
[420403474,1776081149383,-1000.0,0.000434,120]
[420403475,1776081149409,-508.0,0.00043403,19]
[420403476,1776081149424,-500.0,0.00043421,120]
[420403477,1776081149445,-633805.9607122,0.00043444,60]
[420403478,1776081149460,-200.0,0.00043452,120]
[420403479,1776081149477,-18349.0,0.0004347,120]
[420403480,1776081149492,-1061.62739363,0.00043499,30]
[420403481,1776081149508,-13706418.54,0.00043499,30]
[420403482,1776081149527,-300.77343982,0.000435,120]
[420403483,1776081149541,-49500.0,0.000435,61]
[420403484,1776081149571,-2272.406,0.000435,120]
[420403485,1776081149592,-1000.0,0.000435,120]
[420403486,1776081149615,-2272.406,0.000435,120]
[420403487,1776081149632,-525.0,0.000435,120]
[420403488,1776081149652,-20000.0,0.000435,30]
[420403489,1776081149672,-889.73308901,0.000435,30]
[420403490,1776081149690,-1815.31316722,0.000435,120]
[420403491,1776081149713,-6325.24161178,0.000435,120]
[420403492,1776081149730,-1100.0,0.000435,120]
[420403493,1776081149753,-500.0,0.000435,120]
[420403494,1776081149768,-345219.05136112,0.00043543,30]
[420403495,1776081149794,-1000.0,0.00043552,120]
[420403496,1776081149810,-50000.0,0.00043561,120]
[420403497,1776081149832,-1000.0,0.00043568,120]
[420403498,1776081149862,-10000.0,0.00043589,120]
[420403499,1776081149885,-2000.0,0.000436,120]
[420403500,1776081149899,-540.68,0.0004361,101]
[420403501,1776081149926,-30563.0,0.0004365,60]
[420403502,1776081149941,-157.09749239,0.00043657,2]
[420403503,1776081149969,-155.0,0.000437,120]
[420403504,1776081149984,-2859.69993339,0.000437,120]
[420403505,1776081150011,-500.0,0.00043716,120]
[420403506,1776081150026,-700.0,0.00043735,120]
[420403507,1776081150044,-1800.0,0.00043735,120]
[420403508,1776081150060,-1000.0,0.0004375,120]
[420403509,1776081150075,-10285.38,0.000438,120]
[420403510,1776081150091,-20000.0,0.000438,30]
[420403511,1776081150106,-20000.0,0.000438,30]
[420403512,1776081150120,-1000.0,0.000438,120]
[420403513,1776081150138,-153.20197106,0.000438,120]
[420403514,1776081150156,-1005.36,0.000438,120]
[420403515,1776081150534,-5294.70535,0.00043827,30]
[420403516,1776081150554,-50000.0,0.00043835,120]
[420403517,1776081150564,-1667.06,0.00043835,30]
[420403518,1776081150579,-150.0,0.00043836,30]
[420403519,1776081150590,-50024.80191611,0.00043836,30]
[420403520,1776081150600,-341.05051559,0.00043836,120]
[420403521,1776081150610,-341.05051559,0.00043836,120]
[420403522,1776081150629,-341.05051559,0.00043836,120]
[420403523,1776081150644,-341.05051559,0.00043836,120]
[420403524,1776081150653,-1000.0,0.00043836,30]
[420403525,1776081150670,-500.0,0.00043836,31]
[420403526,1776081150688,-500.0,0.00043836,31]
[420403527,1776081150698,-500.0,0.00043836,31]
[420403528,1776081150709,-500.0,0.00043836,31]
[420403529,1776081150728,-500.0,0.00043836,31]
[420403530,1776081150740,-500.0,0.00043836,31]
[420403531,1776081150749,-500.0,0.00043836,31]
[420403532,1776081150764,-500.0,0.00043836,31]
[420403533,1776081150779,-500.0,0.00043836,31]
[420403534,1776081150791,-500.0,0.00043836,31]
[420403535,1776081150804,-500.0,0.00043836,31]
[420403536,1776081150829,-500.0,0.00043836,31]
[420403537,1776081150843,-500.0,0.00043836,31]
[420403538,1776081150872,-500.0,0.00043836,31]
[420403539,1776081150886,-500.0,0.00043836,31]
[420403540,1776081150906,-500.0,0.00043836,31]
[420403541,1776081150919,-500.0,0.00043836,31]
[420403542,1776081150936,-500.0,0.00043836,31]
[420403543,1776081150950,-500.0,0.00043836,31]
[420403544,1776081150963,-500.0,0.00043836,31]
[420403545,1776081150975,-500.0,0.00043836,31]
[420403546,1776081150994,-500.0,0.00043836,31]
[420403547,1776081151010,-500.0,0.00043836,31]
[420403548,1776081151029,-500.0,0.00043836,31]
[420403549,1776081151042,-500.0,0.00043836,31]
[420403550,1776081151065,-500.0,0.00043836,31]
[420403551,1776081151078,-500.0,0.00043836,31]
[420403552,1776081151095,-500.0,0.00043836,31]
[420403553,1776081151107,-500.0,0.00043836,31]
[420403554,1776081151118,-500.0,0.00043836,31]
[420403555,1776081151133,-500.0,0.00043836,31]
[420403556,1776081151147,-500.0,0.00043836,31]
[420403557,1776081151158,-500.0,0.00043836,31]
[420403558,1776081151174,-500.0,0.00043836,31]
[420403559,1776081151190,-500.0,0.00043836,31]
[420403560,1776081151202,-500.0,0.00043836,31]
[420403561,1776081151220,-500.0,0.00043836,31]
[420403562,1776081151239,-500.0,0.00043836,31]
[420403563,1776081151250,-614.06723028,0.00043836,31]
[420403564,1776081151282,-500.0,0.00043836,31]
[420403565,1776081151291,-289.95641437,0.00043848,120]
[420403566,1776081151327,-1000.0,0.00043863,120]
[420403567,1776081151342,-400.0,0.0004389,120]
[420403568,1776081151355,-20000.0,0.000439,30]
[420403569,1776081151365,-1000.0,0.000439,120]
[420403570,1776081151376,-1981.18084589,0.000439,120]
[420403571,1776081151385,-2969.16069084,0.000439,120]
[420403572,1776081151397,-154.0,0.000439,120]
[420403573,1776081151409,-500.0,0.00043912,120]
[420403574,1776081151418,-157.09749239,0.00043931,2]
[420403575,1776081151427,-10013.26082576,0.00043947,2]
[420403576,1776081151440,-1100.0,0.00043953,120]
[420403577,1776081151449,-150.0,0.00043967,120]
[420403578,1776081151458,-1318.0,0.00044,120]
[420403579,1776081151467,-22500.0,0.00044,120]
[420403580,1776081151482,-81180.81219381,0.00044,90]
[420403581,1776081151495,-2500.0,0.00044,120]
[420403582,1776081151504,-153.8115448,0.00044,120]
[420403583,1776081151513,-152.36445841,0.00044,120]
[420403584,1776081151538,-2500.0,0.00044,120]
[420403585,1776081151549,-495.71639706,0.00044,5]
[420403586,1776081151559,-12075.3759491,0.00044,120]
[420403587,1776081151585,-100000.0,0.00044,8]
[420403588,1776081151594,-100000.0,0.00044,9]
[420403589,1776081151608,-3000.0,0.00044,61]
[420403590,1776081151634,-8476.18156607,0.00044,30]
[420403591,1776081151644,-11975.48,0.00044,120]
[420403592,1776081151661,-50000.0,0.00044,60]
[420403593,1776081151676,-500.0,0.00044,120]
[420403594,1776081151686,-2000.0,0.00044,61]
[420403595,1776081151703,-16561.2876001,0.00044,120]
[420403596,1776081151718,-23100.0,0.00044,120]
[420403597,1776081151728,-500.0,0.00044,120]
[420403598,1776081151738,-71086.82917763,0.00044,2]
[420403599,1776081151766,-896.41,0.00044,120]
[420403600,1776081151778,-1000.0,0.00044,120]
[420403601,1776081151795,-849.0,0.00044,60]
[420403602,1776081151811,-650.82172088,0.00044,120]
[420403603,1776081151824,-19720.09,0.00044,120]
[420403604,1776081151835,-4800.0,0.00044,120]
[420403605,1776081151847,-200.0,0.00044,120]
[420403606,1776081151858,-185.0,0.00044,2]
[420403607,1776081151872,-2000.0,0.00044,120]
[420403608,1776081151883,-347.97,0.00044,60]
[420403609,1776081151894,-14588.52,0.00044,120]
[420403610,1776081151904,-90429.0,0.00044,10]
[420403611,1776081151918,-1151.0,0.00044,30]
[420403612,1776081151931,-3218.01367534,0.00044,120]
[420403613,1776081151942,-166.0,0.00044,30]
[420403614,1776081151955,-4000.0,0.00044,120]
[420403615,1776081151965,-26025.41071757,0.00044,30]
[420403616,1776081151981,-78512.55571402,0.00044,7]
[420403617,1776081151992,-395.0,0.00044,120]
[420403618,1776081152006,-313.0,0.00044,120]
[420403619,1776081152028,-500.0,0.00044,120]
[420403620,1776081152043,-1000.0,0.00044003,120]
[420403621,1776081152057,-500.0,0.0004401,120]
[420403622,1776081152071,-3624330.37,0.0004406,120]
[420403623,1776081152083,-1000.0,0.000441,120]
[420403624,1776081152095,-50000.0,0.000441,120]
[420403625,1776081152110,-50000.0,0.00044109,120]
[420403626,1776081152120,-500.0,0.0004411,120]
[420403627,1776081152130,-204.42,0.0004411,120]
[420403628,1776081152146,-500.0,0.00044138,120]
[420403629,1776081152161,-451.92461148,0.00044146,90]
[420403630,1776081152172,-1000.0,0.00044158,120]
[420403631,1776081152194,-498.52,0.00044161,120]
[420403632,1776081152205,-150.0,0.0004419,120]
[420403633,1776081152214,-50000.0,0.000442,30]
[420403634,1776081152232,-150.0,0.00044202,120]
[420403635,1776081152247,-157.09749239,0.00044205,2]
[420403636,1776081152256,-500.0,0.00044214,120]
[420403637,1776081152268,-500.0,0.0004425,120]
[420403638,1776081152287,-1000.0,0.00044272,120]
[420403639,1776081152296,-700.0,0.00044283,120]
[420403640,1776081152305,-1800.0,0.00044283,120]
[420403641,1776081152318,-269.8,0.000443,31]
[420403642,1776081152337,-500.0,0.00044305,120]
[420403643,1776081152347,-50000.0,0.00044383,120]
[420403644,1776081152356,-452.286,0.00044384,30]
[420403645,1776081152374,-1000.0,0.000444,120]
[420403646,1776081152384,-108943.11647039,0.000444,120]
[420403647,1776081152393,-182038.80761194,0.000444,30]
[420403648,1776081152403,-540.68,0.000444,106]
[420403649,1776081152417,-1000.0,0.00044452,120]
[420403650,1776081152427,-150.0,0.00044465,120]
[420403651,1776081152437,-157.09749239,0.00044479,2]
[420403652,1776081152449,-44600.90527135,0.00044499,10]
[420403653,1776081152462,-12214.99,0.000445,120]
[420403654,1776081152471,-1000.0,0.000445,120]
[420403655,1776081152480,-1740.81767029,0.000445,120]
[420403656,1776081152492,-500.0,0.000445,120]
[420403657,1776081152509,-500.0,0.000445,120]
[420403658,1776081152518,-20000.0,0.000445,10]
[420403659,1776081152528,-800.0,0.000445,90]
[420403660,1776081152550,-220000.0,0.000445,30]
[420403661,1776081152559,-2000.0,0.000445,120]
[420403662,1776081152569,-14880.29,0.000445,120]
[420403663,1776081152590,-2341.14624043,0.000445,120]
[420403664,1776081152601,-2052.19627704,0.000445,120]
[420403665,1776081152611,-150.0,0.000445,74]
[420403666,1776081152628,-500.0,0.000445,120]
[420403667,1776081152638,-500.0,0.0004453,120]
[420403668,1776081152648,-500.0,0.0004453,120]
[420403669,1776081152659,-500.0,0.0004453,120]
[420403670,1776081152679,-500.0,0.0004453,120]
[420403671,1776081152689,-8201.3840855,0.00044576,120]
[420403672,1776081152700,-30000.0,0.00044598,120]
[420403673,1776081152722,-500.0,0.000446,120]
[420403674,1776081152736,-329799.70581459,0.000446,120]
[420403675,1776081152746,-500.0,0.00044632,120]
[420403676,1776081152763,-201.85797654,0.00044632,120]
[420403677,1776081152777,-500.0,0.0004465,30]
[420403678,1776081152787,-536.13901133,0.0004465,60]
[420403679,1776081152803,-500.0,0.0004465,60]
[420403680,1776081152819,-50000.0,0.00044657,120]
[420403681,1776081152829,-1000.0,0.00044678,120]
[420403682,1776081152844,-512.17,0.0004469,120]
[420403683,1776081152859,-558.07,0.00044695,120]
[420403684,1776081152869,-151.0,0.000447,120]
[420403685,1776081152885,-151.0,0.000447,90]
[420403686,1776081152899,-340.0,0.000447,7]
[420403687,1776081152908,-500.0,0.00044713,120]
[420403688,1776081152919,-1000.0,0.00044747,120]
[420403689,1776081152938,-500.0,0.0004475,120]
[420403690,1776081152947,-157.09749239,0.00044753,2]
[420403691,1776081152961,-150.0,0.00044764,120]
[420403692,1776081152980,-146372.39611522,0.000448,100]
[420403693,1776081152990,-5000.0,0.000448,60]
[420403694,1776081153003,-800.0,0.000448,120]
[420403695,1776081153022,-1000.0,0.000448,120]
[420403696,1776081153032,-15000.0,0.000448,65]
[420403697,1776081153043,-12957.18338503,0.000448,120]
[420403698,1776081153061,-94243.58791668,0.000448,120]
[420403699,1776081153072,-2723344.0105,0.00044819,30]
[420403700,1776081153083,-500.0,0.00044821,2]
[420403701,1776081153107,-300.0,0.00044822,120]
[420403702,1776081153122,-300.0,0.00044822,120]
[420403703,1776081153133,-700.0,0.00044831,120]
[420403704,1776081153165,-1800.0,0.00044831,120]
[420403705,1776081153184,-1000.0,0.00044834,2]
[420403706,1776081153214,-150.0,0.00044854,120]
[420403707,1776081153250,-371.1,0.00044866,120]
[420403708,1776081153270,-156.59,0.00044868,30]
[420403709,1776081153283,-1500.0,0.00044869,120]
[420403710,1776081153306,-1346.32165071,0.00044875,120]
[420403711,1776081153318,-500.0,0.00044889,120]
[420403712,1776081153331,-4954.59867357,0.00044889,120]
[420403713,1776081153349,-432.65653292,0.00044889,120]
[420403714,1776081153362,-3663.22752358,0.0004489,120]
[420403715,1776081153375,-500.0,0.00044894,120]
[420403716,1776081153395,-5000.0,0.000449,120]
[420403717,1776081153405,-1300.0,0.000449,120]
[420403718,1776081153418,-36197.6541015,0.000449,45]
[420403719,1776081153441,-6304.70528595,0.000449,30]
[420403720,1776081153455,-1000.0,0.000449,120]
[420403721,1776081153465,-205268.37652527,0.000449,30]
[420403722,1776081153492,-4044.7815752,0.000449,120]
[420403723,1776081153507,-154.0,0.000449,120]
[420403724,1776081153528,-155.0,0.000449,120]
[420403725,1776081153547,-186607.486688,0.000449,120]
[420403726,1776081153561,-1051.76674,0.000449,30]
[420403727,1776081153588,-25000.0,0.000449,120]
[420403728,1776081153599,-500.0,0.00044931,2]
[420403729,1776081153626,-50000.0,0.00044931,120]
[420403730,1776081153640,-500.0,0.00044932,120]
[420403731,1776081153667,-204.42,0.00044932,120]
[420403732,1776081153682,-2006.1878363,0.00044939,120]
[420403733,1776081153709,-2976.0,0.00044949,58]
[420403734,1776081153726,-210.0,0.0004496,30]
[420403735,1776081153743,-371.1,0.00044966,120]
[420403736,1776081153759,-1000.0,0.00044993,120]
[420403737,1776081153776,-758.472006,0.00045,120]
[420403738,1776081153791,-2500.0,0.00045,120]
[420403739,1776081153801,-2196.56514968,0.00045,120]
[420403740,1776081153821,-1936.0450175,0.00045,120]
[420403741,1776081153836,-208.46620863,0.00045,120]
[420403742,1776081153847,-330.63692985,0.00045,120]
[420403743,1776081153871,-558.79393612,0.00045,120]
[420403744,1776081153885,-153.81146034,0.00045,30]
[420403745,1776081153899,-613.86610862,0.00045,10]
[420403746,1776081153911,-1041.50655467,0.00045,120]
[420403747,1776081153927,-164.62633133,0.00045,10]
[420403748,1776081153937,-1000.0,0.00045,30]
[420403749,1776081153951,-2129.0,0.00045,120]
[420403750,1776081153961,-8457.0,0.00045,120]
[420403751,1776081153973,-25459.0,0.00045,15]
[420403752,1776081153987,-1000.0,0.00045,100]
[420403753,1776081154000,-180.83067912,0.00045,14]
[420403754,1776081154015,-1000.0,0.00045,120]
[420403755,1776081154026,-1000.0,0.00045,120]
[420403756,1776081154041,-404.0,0.00045,120]
[420403757,1776081154055,-549.44344958,0.00045,30]
[420403758,1776081154065,-500.0,0.00045,30]
[420403759,1776081154080,-500.0,0.00045,30]
[420403760,1776081154099,-500.0,0.00045,30]
[420403761,1776081154109,-500.0,0.00045,30]
[420403762,1776081154122,-500.0,0.00045,30]
[420403763,1776081154147,-500.0,0.00045,30]
[420403764,1776081154157,-500.0,0.00045,30]
[420403765,1776081154170,-500.0,0.00045,30]
[420403766,1776081154185,-500.0,0.00045,30]
[420403767,1776081154198,-2758.05270304,0.00045,120]
[420403768,1776081154210,-720.77803339,0.00045,120]
[420403769,1776081154220,-151.85379747,0.00045,30]
[420403770,1776081154230,-4277.28681378,0.00045,99]
[420403771,1776081154245,-1845.76597299,0.00045,99]
[420403772,1776081154258,-20000.0,0.00045,14]
[420403773,1776081154267,-4871.21141013,0.00045,120]
[420403774,1776081154280,-10000.0,0.00045,120]
[420403775,1776081154289,-250.0,0.00045,4]
[420403776,1776081154302,-100000.0,0.00045,120]
[420403777,1776081154312,-2233.99961486,0.00045,120]
[420403778,1776081154323,-285.0,0.00045,30]
[420403779,1776081154336,-150.0,0.00045,120]
[420403780,1776081154346,-100000.0,0.00045,30]
[420403781,1776081154357,-1294.0,0.00045,30]
[420403782,1776081154368,-10000.0,0.00045,120]
[420403783,1776081154380,-3269.84720037,0.00045,14]
[420403784,1776081154389,-2460.57062509,0.00045,120]
[420403785,1776081154399,-2476.3146654,0.00045,14]
[420403786,1776081154414,-151.0,0.00045,120]
[420403787,1776081154428,-281.95886428,0.00045,120]
[420403788,1776081154439,-1243.65872571,0.00045,120]
[420403789,1776081154456,-724.89386149,0.00045,30]
[420403790,1776081154470,-168.11,0.00045,2]
[420403791,1776081154479,-635.31138722,0.00045,120]
[420403792,1776081154496,-604.85730151,0.00045,30]
[420403793,1776081154507,-100009.49,0.00045,120]
[420403794,1776081154517,-1000.0,0.00045,120]
[420403795,1776081154527,-1000.0,0.00045,120]
[420403796,1776081154547,-500.0,0.00045,120]
[420403797,1776081154557,-380.0,0.00045,3]
[420403798,1776081154566,-8493.528999,0.00045,120]
[420403799,1776081154578,-12500.88,0.00045,30]
[420403800,1776081154592,-26791.00680635,0.00045,21]
[420403801,1776081154601,-226.20637736,0.00045,10]
[420403802,1776081154610,-17145.13789491,0.00045,120]
[420403803,1776081154621,-181290.12204703,0.00045,30]
[420403804,1776081154634,-279.6712807,0.00045,30]
[420403805,1776081154644,-200080.00000004,0.00045,30]
[420403806,1776081154654,-1000.0,0.00045,120]
[420403807,1776081154664,-46225.56587451,0.00045,120]
[420403808,1776081154678,-2500.0,0.00045,30]
[420403809,1776081154688,-155231.53787374,0.00045,120]
[420403810,1776081154701,-50000.0,0.00045,50]
[420403811,1776081154710,-1071.54136472,0.00045,120]
[420403812,1776081154725,-283.34506292,0.00045,60]
[420403813,1776081154735,-719.67417996,0.00045,120]
[420403814,1776081154747,-13555.93250612,0.00045,120]
[420403815,1776081154758,-464.64467588,0.00045,120]
[420403816,1776081154775,-284.97699351,0.00045,120]
[420403817,1776081154785,-2500.0,0.00045,120]
[420403818,1776081154794,-604.01895514,0.00045,120]
[420403819,1776081154808,-5418.9333006,0.00045,60]
[420403820,1776081154820,-30244.24699489,0.00045,120]
[420403821,1776081154829,-210.0,0.00045,3]
[420403822,1776081154843,-1312.7923656,0.00045,120]
[420403823,1776081154854,-440.0,0.00045,120]
[420403824,1776081154867,-6495.71285046,0.00045,120]
[420403825,1776081154878,-5000.0,0.00045,30]
[420403826,1776081154890,-29502.42420167,0.00045,10]
[420403827,1776081154902,-5998.7133882,0.00045,120]
[420403828,1776081154914,-10000.0,0.00045,60]
[420403829,1776081154936,-1011.69,0.00045,120]
[420403830,1776081154948,-150000.0,0.00045,90]
[420403831,1776081154958,-74656.29989965,0.00045,30]